[Event "10th Cesme Open-B 2024"]
[Site "Cesme"]
[Date "2024.06.27"]
[Round "5"]
[White "Buyuk, Eymen Eren"]
[Black "Akkara, Omer"]
[Result "1-0"]
[ECO "E60"]
[WhiteElo "1894"]
[BlackElo "1829"]
[Annotator "NA RC"]
[PlyCount "87"]
[EventDate "2024.06.23"]
[EventType "swiss"]
[EventCountry "TUR"]
[SourceTitle "playchess.com"]
[Source "ChessBase"]
[SourceQuality "1"]
[TimeControl "5400+30"]

1. d4 {[%emt 0:01:00]} Nf6 {[%emt 0:01:00]} 2. c4 {[%emt 0:00:30]} g6 {[%emt 0:00:00]} 3. h4 {[%emt 0:00:00]} c5 {[%emt 0:02:00]} 4. d5 {[%emt 0:01:00]} Bg7 {[%emt 0:00:30]} 5. Nc3 {[%emt 0:00:30]} d6 {[%emt 0:00:30]} 6. e4 {[%emt 0:01:30] E60: King's Indian: Unusual lines and Fianchetto Variation without Nc3.} Nbd7 {[%emt 0:00:30]} 7. Be2 {[%emt 0:00:30]} h5 {[%emt 0:02:30]} 8. Bg5 {[%emt 0:01:30]} b5 {[%emt 0:06:30]} 9. cxb5 {[%emt 0:02:30]} Qa5 {[%emt 0:00:30]} 10. Qd2 {[%emt 0:02:30]} Qb4 {[%emt 0:01:30]} 11. a3 {[%emt 0:01:30]} Qa5 {[%emt 0:05:30]} 12. Nf3 {[%emt 0:04:30]} Ng4 {[%emt 0:01:30]} 13. O-O {[%emt 0:03:30]} Nde5 {[%emt 0:01:30]} 14. Nxe5 {[%emt 0:00:30]} Bxe5 {[%emt 0:00:30]} 15. f3 {[%emt 0:03:30]} Nf6 {[%emt 0:01:30]} 16. Be3 {[%emt 0:01:30]} Bd7 {[%emt 0:01:30]} 17. Qd3 {[%emt 0:08:30]} Rb8 {[%emt 0:04:30]} 18. Rfb1 {[%emt 0:02:30]} O-O {[%emt 0:06:30]} 19. f4 {[%emt 0:17:30]} c4 {[%emt 0:00:30]} 20. Qc2 {[%emt 0:00:30]} Bxc3 {[%emt 0:01:30]} 21. bxc3 {[%emt 0:00:30]} Bxb5 {[%emt 0:00:30]} 22. Rb4 {[%emt 0:00:30]} Rfc8 {[%emt 0:02:30]} 23. Rab1 {[%emt 0:03:30]} Ba4 {[%emt 0:02:30]} 24. Qd2 {[%emt 0:02:30]} Rxb4 {[%emt 0:01:30]} 25. axb4 {[%emt 0:00:30]} Qb5 {[%emt 0:00:30]} 26. Bf3 {[%emt 0:00:30]} a5 {[%emt 0:01:30]} 27. e5 {[%emt 0:00:30]} Ne8 {[%emt 0:04:30]} 28. Bd4 {[%emt 0:04:30]} Ng7 {[%emt 0:02:30]} 29. exd6 {[%emt 0:00:30]} exd6 {[%emt 0:01:30]} 30. Bxg7 {[%emt 0:00:30]} Kxg7 {[%emt 0:00:30]} 31. f5 {[%emt 0:00:30]} Qb6+ {[%emt 0:00:30]} 32. Kh1 {[%emt 0:00:30]} Re8 {[%emt 0:05:30]} 33. Ra1 {[%emt 0:01:30]} axb4 {[%emt 0:08:30]} 34. fxg6 {[%emt 0:02:30]} fxg6 {[%emt 0:00:30]} 35. Rxa4 {[%emt 0:11:30]} b3 {[%emt 0:00:30]} 36. Ra1 {[%emt 0:02:30]} Qe3 {[%emt 0:00:30]} 37. Qxe3 {[%emt 0:00:30]} Rxe3 {[%emt 0:00:30]} 38. Rc1 {[%emt 0:00:30]} Kf6 {[%emt 0:01:30]} 39. Kg1 {[%emt 0:00:54]} Kf5 {[%emt 0:00:30]} 40. Kf2 {[%emt 0:00:12]} Rd3 $14 {[%emt 0:00:30]} 41. Ke2 {[%emt 0:04:36]} Rxc3 {[%emt 0:00:30]} 42. Rxc3 {[%emt 0:00:17]} b2 {[%emt 0:00:30]} 43. Be4+ {[%emt 0:00:09]} Kxe4 {[%emt 0:00:30]} 44. Rxc4+ {[%emt 0:00:30]} 1-0

[Event "10th Cesme Open-B 2024"]
[Site "Cesme"]
[Date "2024.06.27"]
[Round "5"]
[White "Varyemez, Ali"]
[Black "Dirikolu, Deniz"]
[Result "0-1"]
[ECO "E11"]
[WhiteElo "1889"]
[BlackElo "1978"]
[Annotator "RC"]
[PlyCount "94"]
[EventDate "2024.06.23"]
[EventType "swiss"]
[EventCountry "TUR"]
[SourceTitle "playchess.com"]
[Source "ChessBase"]
[SourceQuality "1"]
[TimeControl "5400+30"]

1. d4 {[%emt 0:01:00]} Nf6 {[%emt 0:01:00]} 2. c4 {[%emt 0:00:30]} e6 {[%emt 0:00:30]} 3. Nf3 {[%emt 0:00:00]} d5 {[%emt 0:00:00]} 4. g3 {[%emt 0:00:00]} Bb4+ {[%emt 0:05:00]} 5. Bd2 {[%emt 0:00:30]} a5 {[%emt 0:00:30]} 6. Bg2 {[%emt 0:01:30]} O-O {[%emt 0:00:00]} 7. O-O {[%emt 0:02:30]} dxc4 {[%emt 0:02:00]} 8. Qc2 {[%emt 0:02:30]} Bxd2 {[%emt 0:00:30]} 9. Nbxd2 {[%emt 0:00:30]} b5 {[%emt 0:03:30]} 10. a4 {[%emt 0:05:30]} c6 {[%emt 0:00:30]} 11. e4 {[%emt 0:00:30]} Na6 {[%emt 0:01:30]} 12. e5 {[%emt 0:04:30]} Nb4 {[%emt 0:00:30]} 13. Qd1 {[%emt 0:00:30]} Nfd5 {[%emt 0:00:00]} 14. Ne4 {[%emt 0:00:00]} h6 {[%emt 0:09:00]} 15. Qe2 {[%emt 0:07:00]} Ba6 {[%emt 0:01:30]} 16. axb5 {[%emt 0:11:30]} cxb5 {[%emt 0:00:30]} 17. Rfd1 {[%emt 0:05:30]} Nd3 {[%emt 0:05:30]} 18. Ne1 {[%emt 0:06:30]} N5b4 {[%emt 0:10:30]} 19. Qg4 {[%emt 0:13:30]} Kh8 {[%emt 0:09:30]} 20. Nxd3 {[%emt 0:01:30]} Nxd3 {[%emt 0:08:30]} 21. Nc5 {[%emt 0:05:30]} Ra7 {[%emt 0:01:30]} 22. Nxd3 {[%emt 0:00:30]} cxd3 {[%emt 0:00:30]} 23. Rxd3 {[%emt 0:00:30]} b4 {[%emt 0:00:30]} 24. Rd2 {[%emt 0:04:30]} Bb7 {[%emt 0:00:00]} 25. Bxb7 {[%emt 0:06:30]} Rxb7 {[%emt 0:00:00]} 26. d5 {[%emt 0:00:30]} exd5 {[%emt 0:03:30]} 27. Rad1 {[%emt 0:00:30]} Rd7 {[%emt 0:00:30]} 28. Qf3 {[%emt 0:02:55]} Qa8 {[%emt 0:00:30]} 29. Rxd5 {[%emt 0:05:37]} Rfd8 {[%emt 0:00:00]} 30. Rxd7 {[%emt 0:00:16]} Qxf3 {[%emt 0:00:00]} 31. Rxd8+ {[%emt 0:00:30]} Kh7 {[%emt 0:00:30]} 32. Re1 {[%emt 0:03:50]} Qb3 {[%emt 0:00:00]} 33. Rd2 {[%emt 0:00:00]} a4 {[%emt 0:01:00]} 34. Rc1 {[%emt 0:02:49]} Qa2 {[%emt 0:00:30]} 35. Rcd1 {[%emt 0:00:51]} b3 {[%emt 0:00:30]} 36. h4 {[%emt 0:00:10]} a3 {[%emt 0:00:00]} 37. Re2 {[%emt 0:01:48]} axb2 {[%emt 0:00:00]} 38. Ree1 {[%emt 0:00:30]} Kg6 {[%emt 0:00:30]} 39. Kg2 {[%emt 0:02:22]} Qa8+ {[%emt 0:00:00]} 40. f3 {[%emt 0:00:05]} Qc8 {[%emt 0:00:00]} 41. Rb1 {[%emt 0:02:52]} Qc2+ {[%emt 0:00:30]} 42. Kg1 {[%emt 0:00:05]} Kf5 {[%emt 0:01:30]} 43. Rbd1 {[%emt 0:00:28]} h5 {[%emt 0:01:30]} 44. Rb1 {[%emt 0:02:14]} g5 {[%emt 0:00:00]} 45. hxg5 {[%emt 0:01:11]} h4 {[%emt 0:00:00]} 46. gxh4 {[%emt 0:00:39]} Kf4 {[%emt 0:00:00]} 47. g6 {[%emt 0:00:31]} Kg3 {[%emt 0:00:00]} 0-1

[Event "10th Cesme Open-B 2024"]
[Site "Cesme"]
[Date "2024.06.27"]
[Round "5"]
[White "Akkaya, Atakan"]
[Black "Yildiz, Elif Zeren"]
[Result "1-0"]
[ECO "B51"]
[WhiteElo "1780"]
[BlackElo "1879"]
[Annotator "NA RC"]
[PlyCount "83"]
[EventDate "2024.06.23"]
[EventType "swiss"]
[EventCountry "TUR"]
[SourceTitle "playchess.com"]
[Source "ChessBase"]
[SourceQuality "1"]
[TimeControl "5400+30"]

1. e4 c5 2. Nf3 d6 3. Bb5+ Nd7 4. O-O a6 5. Bd3 e6 6. c3 {B51: Sicilian: Moscow Variation (3 Bb5+) without 3...Bd7.} Ngf6 7. Bc2 c4 8. Qe2 Qc7 9. b4 b5 10. a4 bxa4 11. Rxa4 Bb7 {[%emt 0:17:00]} 12. Ra5 {[%emt 0:31:30]} Be7 {[%emt 0:14:30]} 13. d3 {[%emt 0:12:30]} cxd3 {[%emt 0:02:30]} 14. Bxd3 {[%emt 0:00:30]} Qc8 {[%emt 0:02:30]} 15. Nbd2 {[%emt 0:07:30]} Nb6 {[%emt 0:12:30]} 16. Bb2 {[%emt 0:10:30]} d5 {[%emt 0:12:30]} 17. e5 {[%emt 0:03:30]} Nfd7 {[%emt 0:00:30]} 18. Rfa1 {[%emt 0:02:30]} Nb8 {[%emt 0:00:30]} 19. Nd4 {[%emt 0:09:30]} O-O {[%emt 0:01:30]} 20. f4 {[%emt 0:00:30]} g6 {[%emt 0:11:30]} 21. R5a2 {[%emt 0:02:30]} Bd8 {[%emt 0:03:30]} 22. h3 {[%emt 0:03:04]} N6d7 {[%emt 0:00:00]} 23. g4 {[%emt 0:04:11]} Bb6 {[%emt 0:01:00]} 24. f5 $2 {[%emt 0:01:19]} (24. N2f3 $16 {and life is bright.}) 24... Nc6 {[%emt 0:04:28]} 25. N2f3 {[%emt 0:00:06]} Qc7 {[%emt 0:05:21]} 26. Re1 {[%emt 0:03:22]} exf5 {[%emt 0:00:38]} 27. Bc1 {[%emt 0:05:02]} fxg4 {[%emt 0:01:43]} 28. hxg4 {[%emt 0:00:12]} f6 {[%emt 0:01:17]} 29. Kh1 {[%emt 0:01:02]} Ndxe5 {[%emt 0:01:26]} 30. Ne6 {[%emt 0:00:30]} Qd6 {[%emt 0:00:10]} 31. Nxf8 {[%emt 0:00:27]} Nxf3 {[%emt 0:00:21]} 32. Qe6+ {[%emt 0:04:46]} Qxe6 {[%emt 0:00:30]} 33. Rxe6 {[%emt 0:00:02]} Nfe5 {[%emt 0:00:53]} 34. Nd7 {[%emt 0:00:25]} Nxd7 {[%emt 0:00:49]} 35. b5 {[%emt 0:00:02]} Nc5 {[%emt 0:01:18]} 36. bxc6 {[%emt 0:01:53]} Bc8 $18 {[%emt 0:00:53]} (36... Nxe6 $11 {and Black has nothing to worry.} 37. cxb7 Rb8 38. Bxa6 Kf7) 37. Re8+ {[%emt 0:01:33]} Kf7 {[%emt 0:00:30]} 38. Rae2 {[%emt 0:00:00]} Ra7 {[%emt 0:00:56]} 39. Rxc8 {[%emt 0:00:29]} Nxd3 {[%emt 0:00:02]} 40. Ba3 {[%emt 0:00:22]} Ne5 {[%emt 0:01:13]} 41. g5 {[%emt 0:00:27]} Rc7 {[%emt 0:01:08]} 42. Rf8+ {[%emt 0:00:02]} 1-0

[Event "10th Cesme Open-B 2024"]
[Site "Cesme"]
[Date "2024.06.27"]
[Round "5"]
[White "Gebes, Ata"]
[Black "Asgharvand, Davood"]
[Result "0-1"]
[ECO "B02"]
[WhiteElo "1774"]
[BlackElo "1881"]
[Annotator "NA RC"]
[PlyCount "58"]
[EventDate "2024.06.23"]
[EventType "swiss"]
[EventCountry "TUR"]
[SourceTitle "playchess.com"]
[Source "ChessBase"]
[SourceQuality "1"]
[TimeControl "5400+30"]

1. e4 {[%emt 0:01:00]} Nf6 {[%emt 0:01:00]} 2. e5 {[%emt 0:00:30]} Nd5 {[%emt 0:00:30]} 3. Nc3 {[%emt 0:00:30]} e6 {[%emt 0:00:30]} 4. Nxd5 {[%emt 0:09:30]} exd5 {[%emt 0:00:30]} 5. d4 {[%emt 0:00:30]} d6 {[%emt 0:00:30]} 6. Nf3 {[%emt 0:00:30]} Bg4 {[%emt 0:00:30]} 7. Be2 {[%emt 0:01:30]} Be7 {[%emt 0:00:30]} 8. O-O {[%emt 0:01:30]} O-O {[%emt 0:00:30]} 9. b3 {[%emt 0:05:30]} Nd7 {[%emt 0:02:30]} 10. Bb2 {[%emt 0:00:30]} Re8 {[%emt 0:00:30]} 11. h3 {[%emt 0:05:30]} Bh5 {[%emt 0:00:30]} 12. Re1 {[%emt 0:08:30]} c6 {[%emt 0:00:30]} 13. Qd2 {[%emt 0:08:30]} a5 {[%emt 0:08:30]} 14. a3 {[%emt 0:04:30]} Bxf3 {[%emt 0:03:30]} 15. Bxf3 {[%emt 0:00:30]} Bg5 {[%emt 0:00:30]} 16. Qc3 {[%emt 0:03:30]} dxe5 {[%emt 0:01:30]} 17. dxe5 {[%emt 0:01:30] [#]} Nxe5 $17 {[%emt 0:05:30]} 18. Rxe5 {[%emt 0:02:30]} Rxe5 {[%emt 0:00:30]} 19. Qxe5 {[%emt 0:00:30]} Bf6 {[%emt 0:00:30]} 20. Qe2 {[%emt 0:00:30]} Bxb2 {[%emt 0:00:30]} 21. Ra2 {[%emt 0:01:30]} Bc3 {[%emt 0:00:00]} 22. a4 {[%emt 0:05:30]} Qf8 {[%emt 0:06:00]} 23. Qd3 {[%emt 0:01:30]} Qc5 {[%emt 0:00:30]} 24. Qe3 {[%emt 0:00:30]} d4 {[%emt 0:02:30]} 25. Qd3 {[%emt 0:03:30]} Re8 {[%emt 0:01:30]} 26. Qc4 {[%emt 0:02:30]} Qf5 {[%emt 0:04:30]} 27. Qd3 {[%emt 0:01:30]} Qf4 {[%emt 0:00:30]} 28. g3 {[%emt 0:01:30]} Qc1+ {[%emt 0:00:00]} 29. Kh2 {[%emt 0:00:30]} Qb1 {[%emt 0:00:00]} 0-1